{"text_format":"3","workbook":"xlsx","n_sheets":2,"sheets":["Begin","Planner voor feestdagenbudget"],"not_rendered":{"defined_names":1},"read":"whole","date_system":"1900"}

{"sheet":"Begin","index":0,"n_rows":4,"n_cols":2,"rows_kept":4}
[null,"Hoe gebruik ik deze sjabloon"]
[null,"Houd uw uitgaven bij met deze planner voor feestdagenbudget."]
[null,"Voer eerst uw budget en werkelijke uitgaven in beide categorietabellen in."]
[null,"Feestdagenbudget, Totaal werkelijk besteed bedrag en Verschil worden automatisch voor u berekend."]

{"sheet":"Planner voor feestdagenbudget","index":1,"n_rows":36,"n_cols":14,"rows_kept":36,"merged":[[0,2,5,7],[2,10,2,11],[8,2,8,5],[8,10,8,13],[18,2,18,5],[18,10,18,13],[29,2,29,5],[29,10,29,13]]}
[null,null,"Planner voor \nfeestdagenbudget"]
[]
[{"$nulls":10},"FEESTDAGENBUDGET",null,null,{"$f":"SUM(Cadeaus[Budget],Verpakking[Budget],(Reizen[Budget],(Maaltijden[Budget],(Amusement[Budget],Diversen[Budget]))))","v":{"v":750,"d":"€ 750.00"}}]
[{"$nulls":10},"WERKELIJK UITGEGEVEN",null,null,{"$f":"SUM((Cadeaus[Werkelijk],(Verpakking[Werkelijk],(Reizen[Werkelijk],(Maaltijden[Werkelijk],(Amusement[Werkelijk],(Diversen[Werkelijk])))))))","v":{"v":820,"d":"€ 820.00"}}]
[]
[{"$nulls":10},"VERSCHIL (boven of onder het budget)",null,null,{"$f":"SUM(N3-N4)","v":{"v":-70,"d":"€ -70.00"}}]
[]
[]
[null,null,"CADEAUS",{"$nulls":7},"VAKANTIEMAALTIJDEN"]
[null,null,"Item","Budget","Werkelijk","Verschil",{"$nulls":4},"Item","Budget","Werkelijk","Verschil"]
[null,null,"Familie",{"v":500,"d":"€ 500.00"},{"v":495,"d":"€ 495.00"},{"$f":"Cadeaus[[#This Row],[Budget]]-Cadeaus[[#This Row],[Werkelijk]]","v":{"v":5,"d":"€ 5.00"}},{"$nulls":4},"Boodschappen",null,null,{"$f":"Maaltijden[[#This Row],[Budget]]-Maaltijden[[#This Row],[Werkelijk]]","v":{"v":0,"d":"€ 0.00"}}]
[null,null,"Vrienden",{"v":250,"d":"€ 250.00"},{"v":325,"d":"€ 325.00"},{"$f":"Cadeaus[[#This Row],[Budget]]-Cadeaus[[#This Row],[Werkelijk]]","v":{"v":-75,"d":"-€ 75.00"}},{"$nulls":4},"Drank",null,null,{"$f":"Maaltijden[[#This Row],[Budget]]-Maaltijden[[#This Row],[Werkelijk]]","v":{"v":0,"d":"€ 0.00"}}]
[null,null,"Collega’s",null,null,{"$f":"Cadeaus[[#This Row],[Budget]]-Cadeaus[[#This Row],[Werkelijk]]","v":{"v":0,"d":"€ 0.00"}},{"$nulls":4},"Versieringen",null,null,{"$f":"Maaltijden[[#This Row],[Budget]]-Maaltijden[[#This Row],[Werkelijk]]","v":{"v":0,"d":"€ 0.00"}}]
[null,null,"Docenten, kinderjuffrouw, babysitters, enzovoort",null,null,{"$f":"Cadeaus[[#This Row],[Budget]]-Cadeaus[[#This Row],[Werkelijk]]","v":{"v":0,"d":"€ 0.00"}},{"$nulls":4},"Anders (druk in de laatste kolom van deze rij op Tab om een rij toe te voegen)",null,null,{"$f":"Maaltijden[[#This Row],[Budget]]-Maaltijden[[#This Row],[Werkelijk]]","v":{"v":0,"d":"€ 0.00"}}]
[null,null,"Donaties aan goede doelen",null,null,{"$f":"Cadeaus[[#This Row],[Budget]]-Cadeaus[[#This Row],[Werkelijk]]","v":{"v":0,"d":"€ 0.00"}},{"$nulls":7},{"$f":"Maaltijden[[#This Row],[Budget]]-Maaltijden[[#This Row],[Werkelijk]]","v":{"v":0,"d":"€ 0.00"}}]
[null,null,"Anders (druk in de laatste kolom van deze rij op Tab om een rij toe te voegen)",null,null,{"$f":"Cadeaus[[#This Row],[Budget]]-Cadeaus[[#This Row],[Werkelijk]]","v":{"v":0,"d":"€ 0.00"}}]
[null,null,"Totaal",{"$f":"SUBTOTAL(109,Cadeaus[Budget])","v":{"v":750,"d":"€ 750.00"}},{"$f":"SUBTOTAL(109,Cadeaus[Werkelijk])","v":{"v":820,"d":"€ 820.00"}},{"$f":"SUBTOTAL(109,Cadeaus[Verschil])","v":{"v":-70,"d":"-€ 70.00"}},{"$nulls":4},"Totaal",{"$f":"SUBTOTAL(109,Maaltijden[Budget])","v":{"v":0,"d":"€ 0.00"}},{"$f":"SUBTOTAL(109,Maaltijden[Werkelijk])","v":{"v":0,"d":"€ 0.00"}},{"$f":"SUBTOTAL(109,Maaltijden[Verschil])","v":{"v":0,"d":"€ 0.00"}}]
[]
[null,null,"VERPAKKING",{"$nulls":7},"AMUSEMENT"]
[null,null,"Item","Budget","Werkelijk","Verschil",{"$nulls":4},"Item","Budget","Werkelijk","Verschil"]
[null,null,"Inpakpapier",null,null,{"$f":"Verpakking[[#This Row],[Budget]]-Verpakking[[#This Row],[Werkelijk]]","v":{"v":0,"d":"€ 0.00"}},{"$nulls":4},"Hulp (bartender, catering, schoonmakers, enzovoort)",null,null,{"$f":"Amusement[[#This Row],[Budget]]-Amusement[[#This Row],[Werkelijk]]","v":{"v":0,"d":"€ 0.00"}}]
[null,null,"Labels",null,null,{"$f":"Verpakking[[#This Row],[Budget]]-Verpakking[[#This Row],[Werkelijk]]","v":{"v":0,"d":"€ 0.00"}},{"$nulls":4},"Versieringen",null,null,{"$f":"Amusement[[#This Row],[Budget]]-Amusement[[#This Row],[Werkelijk]]","v":{"v":0,"d":"€ 0.00"}}]
[null,null,"Benodigdheden (lint, plakband, enzovoort)",null,null,{"$f":"Verpakking[[#This Row],[Budget]]-Verpakking[[#This Row],[Werkelijk]]","v":{"v":0,"d":"€ 0.00"}},{"$nulls":4},"Eten en drinken",null,null,{"$f":"Amusement[[#This Row],[Budget]]-Amusement[[#This Row],[Werkelijk]]","v":{"v":0,"d":"€ 0.00"}}]
[null,null,"Dozen",null,null,{"$f":"Verpakking[[#This Row],[Budget]]-Verpakking[[#This Row],[Werkelijk]]","v":{"v":0,"d":"€ 0.00"}},{"$nulls":4},"Kleding",null,null,{"$f":"Amusement[[#This Row],[Budget]]-Amusement[[#This Row],[Werkelijk]]","v":{"v":0,"d":"€ 0.00"}}]
[null,null,"Portokosten",null,null,{"$f":"Verpakking[[#This Row],[Budget]]-Verpakking[[#This Row],[Werkelijk]]","v":{"v":0,"d":"€ 0.00"}},{"$nulls":4},"Tickets",null,null,{"$f":"Amusement[[#This Row],[Budget]]-Amusement[[#This Row],[Werkelijk]]","v":{"v":0,"d":"€ 0.00"}}]
[null,null,"Anders (druk in de laatste kolom van deze rij op Tab om een rij toe te voegen)",null,null,{"$f":"Verpakking[[#This Row],[Budget]]-Verpakking[[#This Row],[Werkelijk]]","v":{"v":0,"d":"€ 0.00"}},{"$nulls":4},"Uit eten",null,null,{"$f":"Amusement[[#This Row],[Budget]]-Amusement[[#This Row],[Werkelijk]]","v":{"v":0,"d":"€ 0.00"}}]
[{"$nulls":10},"Anders (druk in de laatste kolom van deze rij op Tab om een rij toe te voegen)",null,null,{"$f":"Amusement[[#This Row],[Budget]]-Amusement[[#This Row],[Werkelijk]]","v":{"v":0,"d":"€ 0.00"}}]
[null,null,"Totaal",{"$f":"SUBTOTAL(109,Verpakking[Budget])","v":{"v":0,"d":"€ 0.00"}},{"$f":"SUBTOTAL(109,Verpakking[Werkelijk])","v":{"v":0,"d":"€ 0.00"}},{"$f":"SUBTOTAL(109,Verpakking[Verschil])","v":{"v":0,"d":"€ 0.00"}},{"$nulls":4},"Totaal",{"$f":"SUBTOTAL(109,Amusement[Budget])","v":{"v":0,"d":"€ 0.00"}},{"$f":"SUBTOTAL(109,Amusement[Werkelijk])","v":{"v":0,"d":"€ 0.00"}},{"$f":"SUBTOTAL(109,Amusement[Verschil])","v":{"v":0,"d":"€ 0.00"}}]
[]
[null,null,"REIZEN",{"$nulls":7},"DIVERSEN"]
[null,null,"Item","Budget","Werkelijk","Verschil",{"$nulls":4},"Item","Budget","Werkelijk","Verschil"]
[null,null,"Vliegtickets",null,null,{"$f":"Reizen[[#This Row],[Budget]]-Reizen[[#This Row],[Werkelijk]]","v":{"v":0,"d":"€ 0.00"}},{"$nulls":4},"Foto’s",null,null,{"$f":"Diversen[[#This Row],[Budget]]-Diversen[[#This Row],[Werkelijk]]","v":{"v":0,"d":"€ 0.00"}}]
[null,null,"Overnachting",null,null,{"$f":"Reizen[[#This Row],[Budget]]-Reizen[[#This Row],[Werkelijk]]","v":{"v":0,"d":"€ 0.00"}},{"$nulls":4},"Benzine ",null,null,{"$f":"Diversen[[#This Row],[Budget]]-Diversen[[#This Row],[Werkelijk]]","v":{"v":0,"d":"€ 0.00"}}]
[null,null,"Vervoer",null,null,{"$f":"Reizen[[#This Row],[Budget]]-Reizen[[#This Row],[Werkelijk]]","v":{"v":0,"d":"€ 0.00"}},{"$nulls":4},"Anders (druk in de laatste kolom van deze rij op Tab om een rij toe te voegen)",null,null,{"$f":"Diversen[[#This Row],[Budget]]-Diversen[[#This Row],[Werkelijk]]","v":{"v":0,"d":"€ 0.00"}}]
[null,null,"Anders (druk in de laatste kolom van deze rij op Tab om een rij toe te voegen)",null,null,{"$f":"Reizen[[#This Row],[Budget]]-Reizen[[#This Row],[Werkelijk]]","v":{"v":0,"d":"€ 0.00"}}]
[null,null,"Totaal",{"$f":"SUBTOTAL(109,Reizen[Budget])","v":{"v":0,"d":"€ 0.00"}},{"$f":"SUBTOTAL(109,Reizen[Werkelijk])","v":{"v":0,"d":"€ 0.00"}},{"$f":"SUBTOTAL(109,Reizen[Verschil])","v":{"v":0,"d":"€ 0.00"}},{"$nulls":4},"Totaal",{"$f":"SUBTOTAL(109,Diversen[Budget])","v":{"v":0,"d":"€ 0.00"}},{"$f":"SUBTOTAL(109,Diversen[Werkelijk])","v":{"v":0,"d":"€ 0.00"}},{"$f":"SUBTOTAL(109,Diversen[Verschil])","v":{"v":0,"d":"€ 0.00"}}]